[Event "44th Chess Olympiad Open 2022"]
[Site "Chennai"]
[Date "2022.07.29"]
[Round "1.52"]
[White "Paragua, Mark"]
[Black "Salim Al Maashani Amer Said"]
[Result "1-0"]
[WhiteElo "2461"]
[BlackElo "2038"]
[Annotator "ChessBase"]
[PlyCount "69"]
[EventDate "2022.??.??"]
[TimeControl "60"]

1. d4 {[%emt 0:00:14]} d5 {[%emt 0:00:11]} 2. Nf3 {[%emt 0:00:19]} Nf6 {
[%emt 0:00:11]} 3. c4 {[%emt 0:00:21]} dxc4 {[%emt 0:00:41]} 4. Nc3 {[%emt 0:
00:00]} a6 {[%emt 0:02:14]} 5. e4 {[%emt 0:05:44]} b5 {[%emt 0:00:53]} 6. e5 {
[%emt 0:00:06]} Nd5 {[%emt 0:01:09]} 7. a4 {[%emt 0:00:05]} e6 {[%emt 0:01:59]}
8. axb5 {[%emt 0:01:16]} Bb4 {[%emt 0:01:41]} 9. Bd2 {[%emt 0:01:05]} Nb6 {
[%emt 0:03:48]} 10. bxa6 {[%emt 0:17:43]} Rxa6 {[%emt 0:01:24]} 11. Be2 {
[%emt 0:02:35]} Nc6 {[%emt 0:09:14]} 12. O-O {[%emt 0:08:05]} O-O {[%emt 0:00:
00]} 13. Bg5 {[%emt 0:04:50]} Qd7 {[%emt 0:08:24]} 14. Rxa6 {[%emt 0:02:16]}
Bxa6 {[%emt 0:00:06]} 15. Ne4 {[%emt 0:00:08]} Qd5 {[%emt 0:06:31]} 16. Qb1 {
[%emt 0:12:11]} Nxd4 {[%emt 0:08:16]} 17. Nxd4 {[%emt 0:00:06]} Qxd4 {[%emt 0:
00:00]} 18. Bf6 {[%emt 0:00:12]} Bb7 {[%emt 0:02:22]} 19. Ng5 {[%emt 0:05:13]}
g6 {[%emt 0:07:34]} 20. Rd1 {[%emt 0:07:13]} Qf4 {[%emt 0:00:00]} 21. g3 {
[%emt 0:15:46]} Qf5 {[%emt 0:00:00]} 22. Qxf5 {[%emt 0:02:09]} gxf5 {[%emt 0:
00:00]} 23. Rd4 {[%emt 0:11:40]} Nd5 {[%emt 0:12:02]} 24. Bxc4 {[%emt 0:01:00]}
Nxf6 {[%emt 0:01:37]} 25. exf6 {[%emt 0:00:04]} Ra8 {[%emt 0:00:36]} 26. Bf1 {
[%emt 0:01:38]} Bd6 {[%emt 0:04:12]} 27. Rd1 {[%emt 0:00:36]} Be5 {[%emt 0:00:
00]} 28. Rd7 {[%emt 0:00:28]} Bc6 {[%emt 0:01:11]} 29. Rxf7 {[%emt 0:00:20]}
Bxf6 {[%emt 0:07:03]} 30. Rxf6 {[%emt 0:00:05]} Ra1 {[%emt 0:00:08]} 31. Nxe6 {
[%emt 0:00:09]} h6 {[%emt 0:00:58]} 32. Nd4 {[%emt 0:00:30]} Be4 {[%emt 0:00:
00]} 33. Nxf5 {[%emt 0:00:07]} Rb1 {[%emt 0:00:45]} 34. Nxh6+ {[%emt 0:00:58]}
Kg7 {[%emt 0:00:12]} 35. Rf4 {[%emt 0:00:04]} 1-0

[Event "44th Chess Olympiad Open 2022"]
[Site "Chennai"]
[Date "2022.07.29"]
[Round "1.52"]
[White "Laylo, Darwin"]
[Black "Salim Issa, Ali Shamas"]
[Result "1-0"]
[WhiteElo "2432"]
[BlackElo "1851"]
[Annotator "TA"]
[PlyCount "71"]
[EventDate "2022.??.??"]
[TimeControl "60"]

{[%evp 13,71,14,35,21,35,29,36,42,29,20,15,-55,-68,-76,0,0,0,0,0,0,0,-18,0,0,
40,37,31,40,47,40,46,68,53,54,192,74,79,77,76,86,93,91,629,618,748,729,962,658,
1646,1614,29990,29991,29992,29991,29992,29992,29992,29993,29993,29993]} 1. c4 {
[%emt 0:00:04]} Nf6 {[%emt 0:00:21]} 2. d4 {[%emt 0:00:32]} e6 {[%emt 0:00:10]}
3. Nf3 {[%emt 0:00:06]} d5 {[%emt 0:00:08]} 4. Nc3 {[%emt 0:00:08]} c6 {
[%emt 0:00:18]} 5. Bg5 {[%emt 0:01:39]} Be7 {[%emt 0:00:10]} 6. Qc2 {[%emt 0:
00:00]} Nbd7 {[%emt 0:08:16]} 7. e3 {[%emt 0:00:20]} b6 {[%emt 0:00:53]} 8.
cxd5 {[%emt 0:06:20] D53: Queen's Gambit Declined: 4 Bg5 Be7: Early deviations.
} exd5 {[%emt 0:01:34]} 9. Bd3 {[%emt 0:00:27]} Bb7 {[%emt 0:00:15]} 10. O-O {
[%emt 0:00:15] White is slightly better.} O-O {[%emt 0:00:11]} 11. Ne5 {
[%emt 0:02:07]} h6 {[%emt 0:00:12]} 12. Bh4 {[%emt 0:00:37]} (12. Bf4 $11)
12... Nxe5 $15 {[%emt 0:01:06]} 13. dxe5 {[%emt 0:00:03]} Nd7 {[%emt 0:00:13]}
(13... Ng4 $17 14. Bg3 Bh4) 14. Bg3 $11 {[%emt 0:01:09] [#]} Bh4 $146 {[%emt 0:
00:00]} ({Predecessor:} 14... Nc5 15. Be2 Qc8 16. h3 Ne6 17. Rad1 Rd8 18. Bg4
Ba6 19. Rfe1 Qb7 20. f4 d4 {1-0 (35) Medina Fontes,S (2225)-Mareco,S San
Antonio de Padua 2001}) 15. Bxh4 {[%emt 0:04:02]} Qxh4 {[%emt 0:00:13]} 16. f4
{[%emt 0:00:04]} Qe7 {[%emt 0:00:31]} 17. e4 {[%emt 0:02:34]} d4 {[%emt 0:00:
00]} 18. Ne2 {[%emt 0:00:07]} c5 {[%emt 0:00:10]} 19. Ng3 {[%emt 0:00:14]
Threatens to win with Nf5.} g6 {[%emt 0:00:42] Against Nf5} 20. Qe2 {[%emt 0:
00:00]} Kh7 {[%emt 0:07:12]} 21. a4 {[%emt 0:01:01]} a6 {[%emt 0:00:19]} 22. b3
{[%emt 0:00:02]} Ra7 {[%emt 0:01:11]} 23. Rae1 {[%emt 0:01:35]} Nb8 {[%emt 0:
00:00]} (23... b5 $14) 24. f5 {[%emt 0:01:08]} (24. e6 $18 fxe6 25. f5 exf5 26.
exf5 Qxe2 27. fxg6+ (27. Rxe2 Bd5 $16) 27... Kg8 28. Rxe2 (28. Nxe2 Bd5 $14))
24... Nc6 $16 {[%emt 0:00:21] [#]} 25. e6 {[%emt 0:00:05]} Ne5 {[%emt 0:00:41]}
26. exf7 {[%emt 0:01:48] White is more active.} g5 {[%emt 0:00:55]} (26... Rxf7
$2 27. fxg6+ Nxg6 28. e5 $18) 27. Bc4 {[%emt 0:00:26] Strongly threatening f6.}
({Don't play} 27. a5 $6 b5 $11) 27... Nxc4 $2 {[%emt 0:00:23]} (27... Qd6 $16)
28. bxc4 $18 {[%emt 0:00:09]} ({Weaker is} 28. Qxc4 Qe5 $16) 28... Rxf7 {
[%emt 0:00:23]} 29. e5 {[%emt 0:00:11][%cal Ye4e5,Ye5e6,Ye6e7]} Qe8 {[%emt 0:
01:28]} 30. f6 {[%emt 0:00:27][%cal Yf5f6,Yf6f7]} Rf8 {[%emt 0:02:38]} 31. e6 {
[%emt 0:00:24] [#] White threatens f7 and mate.} Qc6 {[%emt 0:01:34]} 32. e7 {
[%emt 0:00:47] White mates.} Re8 {[%emt 0:00:00]} 33. Rf2 {[%emt 0:00:08]} Bc8
{[%emt 0:01:24]} 34. Qd3+ {[%emt 0:01:04]} Kh8 {[%emt 0:00:18]} 35. f7 {
[%emt 0:00:03]} Raxe7 {[%emt 0:00:27]} 36. Rxe7 {[%emt 0:00:03] Weighted Error
Value: White=0.22 (precise) /Black=0.68} 1-0

[Event "44th Chess Olympiad Open 2022"]
[Site "Chennai"]
[Date "2022.07.29"]
[Round "1.52"]
[White "Salim Mohammed, Salim Al Amri"]
[Black "Gomez, John Paul"]
[Result "0-1"]
[WhiteElo "1917"]
[BlackElo "2451"]
[Annotator "TA"]
[PlyCount "80"]
[EventDate "2022.??.??"]
[TimeControl "60"]

{[%evp 9,80,0,0,0,1,-6,-9,-37,-55,-40,19,19,18,15,10,-67,104,72,66,31,45,0,0,
-38,143,-127,-121,-291,-291,-291,-278,-284,-277,-281,-285,-282,-297,-288,-278,
-280,0,-283,-286,-292,-287,-285,-276,-293,-152,-200,-185,-238,-238,-253,-247,
-235,-175,-160,-62,-262,-247,-475,-467,-500,-502,-499,-442,-464,-343,-335,-313,
-956,-915]} 1. c4 {[%emt 0:00:04]} e5 {[%emt 0:02:23]} 2. Nc3 {[%emt 0:00:12]
[%cal Yb1c3,Yc3d5,Yd5e3]} Bb4 {[%emt 0:01:48]} 3. Nd5 {[%emt 0:01:33]} Bc5 {
[%emt 0:00:11]} 4. b4 {[%emt 0:00:46]} Bd6 {[%emt 0:00:57] [#]} 5. a3 $146 {
[%emt 0:04:25]} ({Predecessor:} 5. c5 Bf8 6. Bb2 d6 7. d4 exd4 8. Qxd4 dxc5 9.
Qe5+ Kd7 10. O-O-O Bd6 11. Qxg7 {1-0 (11) Andreikin,D (2725)-Dowgird,F (2348)
Chess.com INT 2021}) 5... c6 {[%emt 0:02:32]} 6. Ne3 {[%emt 0:00:55] A21:
English Opening: 1...e5 2 Nc3.} Nf6 {[%emt 0:04:51]} 7. Bb2 {[%emt 0:00:39]}
O-O {[%emt 0:01:37]} 8. d4 {[%emt 0:04:14][%cal Yd2d4,Yd4d5,Yd5d6] The
position is equal.} e4 {[%emt 0:04:45]} 9. d5 {[%emt 0:01:02]} Bf4 {[%emt 0:00:
40]} ({Better is} 9... Re8 $1 $15) 10. d6 $1 $11 {[%emt 0:01:14]} Bxe3 {
[%emt 0:03:20]} 11. fxe3 {[%emt 0:00:02]} c5 {[%emt 0:00:57]} 12. b5 {[%emt 0:
03:52] Against Nc6} (12. Nh3 $11) 12... Ng4 $2 {[%emt 0:03:09]} (12... Qa5+ $1
$15 13. Qd2 Qxd2+ 14. Kxd2 Ne8) 13. Nh3 $1 $16 {[%emt 0:03:11]} a6 {[%emt 0:18:
13]} 14. a4 {[%emt 0:03:55]} Nxe3 {[%emt 0:03:54]} 15. Qc1 {[%emt 0:00:00]} (
15. Qb3 $5 {[%cal Rb3e3]} Nf5 16. Qc3 $11) 15... Nf5 {[%emt 0:11:42]} 16. Qf4 {
[%emt 0:00:44]} e3 $2 {[%emt 0:06:28]} 17. Bc3 $2 {[%emt 0:03:47]} (17. O-O-O
$16 {is necessary to keep the advantage.} Nd4 18. Qxe3 (18. Bxd4 cxd4 19. Rxd4
Qa5 $17)) 17... Nd4 $36 {[%emt 0:01:07] Black is in control.} 18. Kd1 {[%emt 0:
01:52] Inhibits Nc2.} (18. Ra2 $17) 18... axb5 $19 {[%emt 0:02:18]} 19. cxb5 {
[%emt 0:00:31] [#]} Nxb5 {[%emt 0:00:00]} 20. axb5 {[%emt 0:03:56]} Rxa1+ {
[%emt 0:00:34] Remove Defender, Deflection} 21. Bxa1 {[%emt 0:00:01]} Qa5 $1 {
[%emt 0:00:16][%csl Ge3,Ya1,Yb5][%cal Ra5d2]} 22. Qxe3 {[%emt 0:00:16]} Qxa1+ {
[%emt 0:00:07]} 23. Qc1 {[%emt 0:00:35]} Qd4+ {[%emt 0:03:16]} 24. Qd2 {
[%emt 0:00:15]} Qa1+ {[%emt 0:01:53]} 25. Qc1 {[%emt 0:00:12]} Qa4+ {[%emt 0:
11:29]} 26. Qc2 {[%emt 0:00:02]} Qxb5 {[%emt 0:00:34]} 27. Ng5 {[%emt 0:00:32]
[%csl Gg5][%cal Rc2h7]} g6 {[%emt 0:00:10] Threatens to win with ...c4.} 28.
Ne4 {[%emt 0:00:00]} Qc6 {[%emt 0:04:49]} (28... Qb4 $19 {And now ...Qd4+
would win.} 29. e3 b5 30. Nf6+ Kg7) 29. g4 {[%emt 0:02:44] [#]} (29. Kc1 $17)
29... Qd5+ $1 {[%emt 0:00:00]} 30. Ke1 {[%emt 0:00:38] aiming for Nf6+.} Qe5 {
[%emt 0:01:04] Inhibits Nf6+. White must now prevent ...b5.} 31. g5 {[%emt 0:
02:07]} b6 {[%emt 0:01:14]} 32. Bg2 {[%emt 0:00:12]} Kh8 {[%emt 0:00:35]
Hoping for ...Bb7.} 33. Nf6 {[%emt 0:12:24]} Qxd6 {[%emt 0:02:26]} (33... Qxg5
$17 34. Qb2 Qh4+ 35. Kd2 Qf4+ 36. Kc2 Qa4+ 37. Kd2 Qa5+ 38. Kc2 Qa4+ 39. Kd2
Qf4+ 40. Kc2 Qc4+ 41. Kd1 Qb4) 34. Rf1 {[%emt 0:00:47]} ({White should play} 
34. Qc3 $15 Qd4 35. Qxd4 cxd4 36. h4) 34... Nc6 {[%emt 0:00:46]} (34... Qxh2 $2
{[#]} 35. Rh1 $1 Qxh1+ 36. Bxh1 $18) 35. e3 $2 {[%emt 0:00:32]} (35. Qe4 Qd4
36. Qxd4 Nxd4 37. Kd2) 35... Qe5 {[%emt 0:01:02]} 36. Ng4 {[%emt 0:01:49]} Qxg5
{[%emt 0:01:19]} 37. Qc3+ {[%emt 0:01:09]} f6 {[%emt 0:00:17]} 38. Nxf6 {
[%emt 0:03:10] Threatening mate with Ne8+.} Qe5 {[%emt 0:00:09] Prevents Ne8.}
39. Qxe5 {[%emt 0:05:13]} Nxe5 {[%emt 0:00:05]} 40. Bd5 $2 {[%emt 0:00:12]} (
40. Nd5 Rd8 41. Nxb6) 40... Ba6 {[%emt 0:00:31] Weighted Error Value: White=0.
58/Black=0.44} 0-1

[Event "44th Chess Olympiad Open 2022"]
[Site "Chennai"]
[Date "2022.07.29"]
[Round "1.52"]
[White "Al Busaidi, Hamood"]
[Black "Bersamina, Paulo"]
[Result "0-1"]
[WhiteElo "1743"]
[BlackElo "2429"]
[Annotator "TA"]
[PlyCount "74"]
[EventDate "2022.??.??"]
[TimeControl "60"]

{[%evp 15,74,7,23,5,16,17,9,8,10,0,0,-9,-9,-30,-6,-4,12,0,13,0,0,-72,0,-35,-37,
-35,-29,-23,-35,-101,-102,-92,-91,-110,-110,-110,-97,-178,-182,-194,-186,-189,
-194,-184,-188,-175,-162,-165,-155,-150,-119,-366,-37,-39,-35,-2133,-2079,
-1292,-1205,-2112,-1122]} 1. e4 {[%emt 0:00:08]} c5 {[%emt 0:00:07]} 2. Nf3 {
[%emt 0:00:13]} d6 {[%emt 0:00:04]} 3. d4 {[%emt 0:00:26]} cxd4 {[%emt 0:02:22]
} 4. Nxd4 {[%emt 0:00:05]} Nf6 {[%emt 0:00:12]} 5. Nc3 {[%emt 0:00:06]} Nc6 {
[%emt 0:00:06]} 6. Be2 {[%emt 0:01:40]} e5 {[%emt 0:00:23]} 7. Nf3 {[%emt 0:00:
00] is cutting edge theory.} h6 {[%emt 0:00:12]} 8. O-O {[%emt 0:00:45]} Be6 {
[%emt 0:00:07]} 9. h3 {[%emt 0:02:25] B58: Classical Sicilian: 6 Be2.} d5 {
[%emt 0:06:57]} 10. exd5 {[%emt 0:02:34]} (10. Bb5 {feels hotter.} d4 11. Ne2
Qc7 12. c3) 10... Nxd5 {[%emt 0:00:41]} 11. Nxd5 {[%emt 0:01:42] The position
is equal.} (11. Bd2 {keeps more tension.} Bc5 12. Bd3 O-O 13. Qe2) 11... Qxd5 {
[%emt 0:00:14]} 12. Qxd5 {[%emt 0:01:18]} Bxd5 {[%emt 0:00:02] [#]} 13. Be3
$146 {[%emt 0:03:32]} ({Predecessor:} 13. Re1 O-O-O 14. Be3 {½-½ (14)
Zdebskaja,N (2422)-Bojkovic,N (2423) Subotica 2008}) 13... O-O-O {[%emt 0:00:
00]} 14. a3 {[%emt 0:06:20]} f5 {[%emt 0:06:16][%cal Yf7f5,Yf5f4]} 15. Rad1 {
[%emt 0:14:11]} f4 {[%emt 0:04:33]} 16. Bc1 {[%emt 0:01:54]} Be7 {[%emt 0:07:
20]} 17. b4 {[%emt 0:00:48]} Bf6 {[%emt 0:16:44]} 18. Bb2 {[%emt 0:00:00]} (18.
Rfe1 $11) 18... Rhe8 {[%emt 0:03:38]} (18... e4 $1 $17 19. Nd4 f3 20. gxf3 exf3
) 19. Nd2 {[%emt 0:05:02]} e4 {[%emt 0:05:24]} 20. Bg4+ {[%emt 0:00:00]} Kc7 {
[%emt 0:01:00]} 21. Bxf6 {[%emt 0:01:20]} gxf6 {[%emt 0:00:02]} 22. c4 {
[%emt 0:10:14]} (22. Rfe1 $1 $15) 22... Bg8 {[%emt 0:01:02]} 23. Rfe1 {[%emt 0:
06:38]} Re5 {[%emt 0:01:23]} 24. Be2 {[%emt 0:09:39]} Nd4 $36 {[%emt 0:00:00]
Keeping White busy.} 25. Rc1 {[%emt 0:01:59]} f5 {[%emt 0:00:00] 0x0.
00208942954edp-1022s more active pieces.} 26. c5 {[%emt 0:01:26]} (26. Nb1 $17
{was called for.}) 26... Nxe2+ $19 {[%emt 0:04:02]} 27. Rxe2 {[%emt 0:00:00] 
[#]} Red5 $1 {[%emt 0:05:23]} 28. Nb1 {[%emt 0:03:13] [#]} Rd1+ $1 {[%emt 0:00:
07]} 29. Re1 {[%emt 0:00:01]} Rxe1+ {[%emt 0:00:12]} 30. Rxe1 {[%emt 0:00:02]
Endgame KRB-KRN} Rd3 {[%emt 0:00:58] Inhibits Nc3. Hoping for ...e3.} 31. Rc1 {
[%emt 0:02:14]} e3 {[%emt 0:00:55]} 32. Kf1 {[%emt 0:01:17]} Rb3 {[%emt 0:00:
20]} 33. Nc3 $2 {[%emt 0:01:10]} (33. fxe3 $17 fxe3 34. Ke2) 33... Rb2 $2 {
[%emt 0:01:39]} (33... Bc4+ $19 34. Ne2 Bb5) 34. Ne2 $1 $15 {[%emt 0:01:06]}
Rd2 {[%emt 0:05:18][%cal Yg8c4] Strongly threatening ...Bc4!} 35. f3 $2 {
[%emt 0:00:56] [#]} (35. fxe3 $15 fxe3 36. g3) 35... Bc4 $1 $19 {[%emt 0:00:16]
Black is clearly winning.} 36. Re1 {[%emt 0:00:30]} Kc6 {[%emt 0:00:34]} 37. a4
{[%emt 0:00:05]} a5 {[%emt 0:00:23] Weighted Error Value: White=0.63/Black=0.
26 (precise)} 0-1

[Event "44th Chess Olympiad Open 2022"]
[Site "Chennai"]
[Date "2022.07.29"]
[Round "1.53"]
[White "Sousa, Andre Ventura"]
[Black "Croes, Octavio"]
[Result "1-0"]
[WhiteElo "2420"]
[BlackElo "1794"]
[Annotator "TA"]
[PlyCount "101"]
[EventDate "2022.??.??"]
[TimeControl "60"]

{[%evp 12,101,22,12,20,13,23,16,16,25,32,20,39,25,31,19,38,21,35,4,7,4,4,14,12,
10,25,20,60,-10,0,-28,19,15,12,14,28,27,33,0,14,15,110,106,102,0,0,0,29,0,0,0,
0,0,184,185,203,200,208,196,194,176,200,164,227,214,266,241,357,337,320,281,
272,272,296,285,248,150,626,623,618,589,523,490,691,646,1310,1189,4727,4727,
29992,29993]} 1. e4 {[%emt 0:00:03]} c5 {[%emt 0:00:05]} 2. Nf3 {[%emt 0:00:04]
} Nc6 {[%emt 0:00:13]} 3. Bb5 {[%emt 0:00:13]} g6 {[%emt 0:00:12]} 4. Bxc6 {
[%emt 0:01:00]} dxc6 {[%emt 0:00:07]} 5. d3 {[%emt 0:00:11]} Bg7 {[%emt 0:00:
00]} 6. O-O {[%emt 0:00:07]} Nf6 {[%emt 0:00:14]} 7. Re1 {[%emt 0:00:15]} O-O {
[%emt 0:00:55] B31: Sicilian: 2...Nc6 3 Bb5 g6.} 8. a4 {[%emt 0:00:09]} Bg4 {
[%emt 0:02:42]} 9. Nbd2 {[%emt 0:02:08] [#]} e5 $146 {[%emt 0:03:32] The
position is equal.} ({Predecessor:} 9... Ne8 10. h3 Bxf3 11. Nxf3 Nc7 12. Bf4
Bxb2 13. Rb1 Bc3 14. Bd2 Bxd2 15. Qxd2 b6 {0-1 (67) Vatter,H (2265)-Meins,G 
(2460) Baunatal 1997}) 10. h3 {[%emt 0:00:45]} Bxf3 {[%emt 0:00:07]} 11. Nxf3 {
[%emt 0:00:03]} Qd6 {[%emt 0:03:30]} 12. a5 {[%emt 0:04:50]} Rfd8 {[%emt 0:00:
00]} 13. b3 {[%emt 0:05:23]} b6 {[%emt 0:08:53]} 14. Be3 {[%emt 0:05:38]} Ne8 {
[%emt 0:01:32][%cal Yf6e8,Ye8c7,Yc7e6,Ye6d4]} 15. Nd2 {[%emt 0:13:04][%cal
Yb3b4]} b5 {[%emt 0:02:11]} 16. Rf1 {[%emt 0:04:29]} Nc7 {[%emt 0:02:02]} 17.
h4 {[%emt 0:04:18][%cal Yh3h4,Yh4h5]} Ne6 {[%emt 0:03:42]} 18. Nf3 {[%emt 0:05:
01]} Nd4 {[%emt 0:10:38]} 19. h5 {[%emt 0:04:36]} f5 {[%emt 0:00:00]} 20. Nxd4
{[%emt 0:10:17]} ({Better is} 20. hxg6 $14 hxg6 21. Bxd4 cxd4 22. exf5) 20...
cxd4 $11 {[%emt 0:00:59]} 21. Bg5 {[%emt 0:00:56]} Bf6 {[%emt 0:00:00]} (21...
Rf8 {should be considered.}) 22. Bxf6 {[%emt 0:00:04]} Qxf6 {[%emt 0:00:09]}
23. hxg6 {[%emt 0:06:44]} hxg6 {[%emt 0:00:25]} 24. exf5 {[%emt 0:00:08]} gxf5
{[%emt 0:01:26]} 25. Qh5 {[%emt 0:04:31] And now Rae1 would win.} (25. f4 $5 {
[%cal Rf4e5]}) 25... Kg7 {[%emt 0:02:57] Hoping for ... Rh8.} 26. f4 {[%emt 0:
02:54]} e4 {[%emt 0:00:39]} (26... Rh8 $11 {keeps the balance.} 27. fxe5 Rxh5
28. exf6+ Kxf6) 27. dxe4 $16 {[%emt 0:00:12]} fxe4 {[%emt 0:00:22]} 28. f5 {
[%emt 0:01:29] White is more active.} (28. Rae1 $16 Rd5 29. Qg4+ Qg6 30. Qxg6+
Kxg6 31. Rxe4) 28... Rh8 $1 $11 {[%emt 0:08:55]} ({Much less strong is} 28...
Kf8 29. Rae1 e3 30. Rf4 $16) 29. Qg4+ {[%emt 0:00:00]} Kf7 {[%emt 0:00:09] [#]
Strongly threatening ...Rh4.} 30. Qxe4 {[%emt 0:00:00]} (30. Rad1 $5 {[%cal
Rg4e4]}) 30... Rae8 {[%emt 0:00:14]} 31. Qg4 {[%emt 0:12:05]} Rh4 {[%emt 0:01:
03]} 32. Qg3 {[%emt 0:00:15] Threatens to win with Rae1. Chess con chili.} Reh8
$2 {[%emt 0:04:52] [#]} (32... Qh6 $11 {and Black has nothing to worry.} 33.
Qg6+ Qxg6 34. fxg6+ Kxg6) 33. Qc7+ $1 $18 {[%emt 0:00:15]} Kg8 {[%emt 0:00:12]
( -> ...Rh1+)} 34. Qb8+ {[%emt 0:00:14]} Qf8 {[%emt 0:01:08]} 35. Qxf8+ {
[%emt 0:01:08]} Kxf8 {[%emt 0:00:10] Endgame KRR-KRR} 36. Rae1 {[%emt 0:01:07]}
R8h6 {[%emt 0:03:28]} 37. Rf3 {[%emt 0:01:33]} Kf7 {[%emt 0:05:44]} (37... c5
$142 38. Re5 Rh1+ 39. Kf2 Rc6) 38. Kf2 {[%emt 0:00:11]} a6 {[%emt 0:01:26]} 39.
Re5 {[%emt 0:01:25]} Rh1 {[%emt 0:03:02]} (39... Rg4 $142 40. Rh3 Rxh3 41. gxh3
Rh4) 40. Rc5 {[%emt 0:00:00]} Ke7 {[%emt 0:03:02]} 41. Rf4 {[%emt 0:33:51]} ({
Not} 41. f6+ Rxf6 42. Rxf6 Kxf6 $16) 41... Rd6 {[%emt 0:32:43]} 42. Ke2 {
[%emt 0:03:04]} Ra1 {[%emt 0:00:00]} 43. g4 {[%emt 0:00:04][%cal Yg2g4,Yg4g5,
Yg5g6]} Kf6 {[%emt 0:00:00]} 44. Rf2 {[%emt 0:00:00]} Rxa5 $2 {[%emt 0:00:00]
Loses the game.} (44... Rg1 $16) 45. g5+ {[%emt 0:00:00]} Kf7 {[%emt 0:00:00]}
46. Kd3 {[%emt 0:00:00]} Ra1 {[%emt 0:00:00]} 47. g6+ {[%emt 0:00:00]} Kf6 {
[%emt 0:00:00]} (47... Kg7 $142 48. Rh2 Rd1+ 49. Ke2 Rg1 50. Rh7+ Kg8) 48. Rg2
{[%emt 0:00:00]} Kg7 {[%emt 0:00:00]} 49. Re5 {[%emt 0:00:00] Prevents Re1.
Black must now prevent Re7+.} Rd7 {[%emt 0:00:00] Inhibits Re7+.} 50. Re6 {
[%emt 0:00:00] Intending f6+ and mate.} c5 {[%emt 0:00:00]} 51. f6+ {[%emt 0:
00:00] Weighted Error Value: White=0.15 (very precise) /Black=0.62} 1-0

[Event "44th Chess Olympiad Open 2022"]
[Site "Chennai"]
[Date "2022.07.29"]
[Round "1.53"]
[White "Santos, Jose Guilherme B Li"]
[Black "Stetsenko, Ilya"]
[Result "1-0"]
[WhiteElo "2361"]
[BlackElo "1683"]
[Annotator "ChessBase"]
[PlyCount "74"]
[EventDate "2022.??.??"]
[TimeControl "60"]

1. c4 {[%emt 0:01:52]} e5 {[%emt 0:00:08]} 2. Nc3 {[%emt 0:00:10]} Bb4 {
[%emt 0:00:04]} 3. Qc2 {[%emt 0:01:29]} Nf6 {[%emt 0:00:57]} 4. Nf3 {[%emt 0:
00:00]} Bxc3 {[%emt 0:02:01]} 5. Qxc3 {[%emt 0:00:43]} d6 {[%emt 0:00:46]} 6.
g3 {[%emt 0:02:10]} O-O {[%emt 0:00:16]} 7. Bg2 {[%emt 0:00:03]} c6 {[%emt 0:
00:00]} 8. O-O {[%emt 0:02:46]} Nbd7 {[%emt 0:02:26]} 9. b3 {[%emt 0:01:49]}
Re8 {[%emt 0:03:18]} 10. Ba3 {[%emt 0:02:57]} Nf8 {[%emt 0:17:54]} 11. Rfe1 {
[%emt 0:00:22]} Rb8 {[%emt 0:01:27]} 12. Rac1 {[%emt 0:01:29]} Ne6 {[%emt 0:00:
00]} 13. d3 {[%emt 0:10:59]} b6 {[%emt 0:19:58]} 14. e3 {[%emt 0:00:38]} Bb7 {
[%emt 0:00:30]} 15. d4 {[%emt 0:04:33]} e4 {[%emt 0:01:14]} 16. Nh4 {[%emt 0:
00:00]} g6 {[%emt 0:04:44]} 17. f3 {[%emt 0:04:24]} exf3 {[%emt 0:03:20]} 18.
Nxf3 {[%emt 0:02:52]} Ne4 {[%emt 0:01:03]} 19. Qc2 {[%emt 0:00:12]} d5 {
[%emt 0:03:33]} 20. Ne5 {[%emt 0:03:53]} f6 {[%emt 0:03:41]} 21. Nd3 {[%emt 0:
00:00]} f5 {[%emt 0:01:37]} 22. Ne5 {[%emt 0:01:39]} Rc8 {[%emt 0:02:54]} 23.
Rf1 {[%emt 0:00:57]} N4g5 {[%emt 0:03:31]} 24. g4 {[%emt 0:05:29]} fxg4 {
[%emt 0:01:16]} 25. Nxg4 {[%emt 0:00:13]} Ne4 {[%emt 0:00:54]} 26. Bxe4 {
[%emt 0:01:10]} dxe4 {[%emt 0:00:01]} 27. Nf6+ {[%emt 0:00:09]} Kg7 {[%emt 0:
00:00]} 28. Nxe8+ {[%emt 0:00:19]} Qxe8 {[%emt 0:00:01]} 29. Qxe4 {[%emt 0:00:
00]} Ng5 {[%emt 0:01:09]} 30. Qg2 {[%emt 0:01:18]} Qxe3+ {[%emt 0:00:36]} 31.
Kh1 {[%emt 0:00:01]} Re8 {[%emt 0:01:03]} 32. Bb4 {[%emt 0:01:39]} Bc8 {
[%emt 0:00:23]} 33. Rce1 {[%emt 0:00:07]} Bh3 {[%emt 0:00:19]} 34. Qxc6 {
[%emt 0:01:10]} Bxf1 {[%emt 0:00:37]} 35. Rxe3 {[%emt 0:00:06]} Rxe3 {[%emt 0:
00:00]} 36. Qc7+ {[%emt 0:00:15]} Kh6 {[%emt 0:00:42]} 37. Qf4 {[%emt 0:00:35]}
Rf3 {[%emt 0:00:57]} 1-0